[Event "Titled Tuesday Blitz August 24 2021"]
[White "Arabidze, Meri"]
[Black "Shimanov, Aleksandr"]
[WhiteFideId "13604040"]
[BlackFideId "4198603"]
[WhiteElo "2432"]
[BlackElo "2596"]
[Result "1/2-1/2"]
[Round "05"]
[TimeControl "180+1"]
[Date "2021.08.24"]
[WhiteClock "0:00:10"]
[BlackClock "0:00:06"]

1. Nf3 {[%clk 0:02:50]}  d5 {[%clk 0:02:59]} 2. g3 {[%clk 0:02:51]}  Bg4 {[%clk 0:02:59]} 3. Bg2 {[%clk 0:02:52]}  Nd7 {[%clk 0:02:58]} 4. O-O {[%clk 0:02:51]}  c6 {[%clk 0:02:58]} 5. d4 {[%clk 0:02:50]}  e6 {[%clk 0:02:58]} 6. c4 {[%clk 0:02:51]}  Ngf6 {[%clk 0:02:55]} 7. b3 {[%clk 0:02:51]}  Be7 {[%clk 0:02:54]} 8. Bb2 {[%clk 0:02:51]}  O-O {[%clk 0:02:54]} 9. Nc3 {[%clk 0:02:51]}  a6 {[%clk 0:02:52]} 10. h3 {[%clk 0:02:49]}  Bh5 {[%clk 0:02:52]} 11. g4 {[%clk 0:02:49]}  Bg6 {[%clk 0:02:51]} 12. Nh4 {[%clk 0:02:46]}  b5 {[%clk 0:02:45]} 13. Nxg6 {[%clk 0:02:45]}  hxg6 {[%clk 0:02:46]} 14. Qd3 {[%clk 0:02:39]}  bxc4 {[%clk 0:02:40]} 15. bxc4 {[%clk 0:02:40]}  Nb6 {[%clk 0:02:40]} 16. cxd5 {[%clk 0:02:36]}  cxd5 {[%clk 0:02:39]} 17. e4 {[%clk 0:02:33]}  dxe4 {[%clk 0:02:39]} 18. Nxe4 {[%clk 0:02:33]}  Nfd5 {[%clk 0:02:39]} 19. Nc5 {[%clk 0:02:30]}  Nf4 {[%clk 0:02:37]} 20. Qf3 {[%clk 0:02:29]}  Nxg2 {[%clk 0:02:37]} 21. Kxg2 {[%clk 0:02:29]}  Nd5 {[%clk 0:02:30]} 22. Bc1 {[%clk 0:02:23]}  Rc8 {[%clk 0:02:19]} 23. Be3 {[%clk 0:02:21]}  Bxc5 {[%clk 0:02:12]} 24. dxc5 {[%clk 0:02:21]}  Nxe3+ {[%clk 0:02:13]} 25. Qxe3 {[%clk 0:02:20]}  Qd5+ {[%clk 0:02:13]} 26. Kg1 {[%clk 0:02:17]}  Rxc5 {[%clk 0:02:11]} 27. Rfd1 {[%clk 0:02:15]}  Qc6 {[%clk 0:02:11]} 28. Rac1 {[%clk 0:02:14]}  Rc4 {[%clk 0:02:10]} 29. Rxc4 {[%clk 0:01:47]}  Qxc4 {[%clk 0:02:11]} 30. a3 {[%clk 0:01:41]}  Rb8 {[%clk 0:02:04]} 31. Qd3 {[%clk 0:01:40]}  Qc6 {[%clk 0:01:55]} 32. Qd6 {[%clk 0:01:36]}  Qb7 {[%clk 0:01:52]} 33. Rd3 {[%clk 0:01:26]}  Rc8 {[%clk 0:01:50]} 34. Rd1 {[%clk 0:01:23]}  Qf3 {[%clk 0:01:43]} 35. Qd3 {[%clk 0:01:22]}  Qc6 {[%clk 0:01:38]} 36. Qd6 {[%clk 0:01:21]}  Qa4 {[%clk 0:01:33]} 37. Rd4 {[%clk 0:01:13]}  Qb3 {[%clk 0:01:28]} 38. Kh2 {[%clk 0:01:06]}  Qf3 {[%clk 0:01:25]} 39. Rf4 {[%clk 0:01:04]}  Qb7 {[%clk 0:01:24]} 40. Rb4 {[%clk 0:01:03]}  Qa7 {[%clk 0:01:18]} 41. Qb6 {[%clk 0:00:55]}  Qa8 {[%clk 0:01:16]} 42. Qb7 {[%clk 0:00:51]}  Qxb7 {[%clk 0:01:16]} 43. Rxb7 {[%clk 0:00:52]}  Rc3 {[%clk 0:01:16]} 44. Rb8+ {[%clk 0:00:48]}  Kh7 {[%clk 0:01:15]} 45. Rb7 {[%clk 0:00:49]}  f6 {[%clk 0:01:10]} 46. Rb6 {[%clk 0:00:48]}  Rxa3 {[%clk 0:01:10]} 47. Rxe6 {[%clk 0:00:48]}  g5 {[%clk 0:01:10]} 48. Kg2 {[%clk 0:00:46]}  a5 {[%clk 0:01:09]} 49. Rb6 {[%clk 0:00:47]}  a4 {[%clk 0:01:09]} 50. Ra6 {[%clk 0:00:46]}  Kg6 {[%clk 0:01:06]} 51. Ra7 {[%clk 0:00:45]}  Kh6 {[%clk 0:01:01]} 52. Kh2 {[%clk 0:00:45]}  Kh7 {[%clk 0:01:00]} 53. Kg2 {[%clk 0:00:45]}  Ra2 {[%clk 0:00:59]} 54. Kg3 {[%clk 0:00:45]}  Kg6 {[%clk 0:00:58]} 55. Kg2 {[%clk 0:00:45]}  Ra1 {[%clk 0:00:57]} 56. Kh2 {[%clk 0:00:44]}  Kh7 {[%clk 0:00:55]} 57. Kg2 {[%clk 0:00:45]}  Kg8 {[%clk 0:00:56]} 58. Kh2 {[%clk 0:00:45]}  a3 {[%clk 0:00:55]} 59. Kg2 {[%clk 0:00:45]}  Kf8 {[%clk 0:00:53]} 60. Kh2 {[%clk 0:00:44]}  g6 {[%clk 0:00:53]} 61. Kg2 {[%clk 0:00:44]}  Ke8 {[%clk 0:00:53]} 62. Kh2 {[%clk 0:00:43]}  Kd8 {[%clk 0:00:52]} 63. Kg2 {[%clk 0:00:42]}  Kc8 {[%clk 0:00:50]} 64. Ra6 {[%clk 0:00:42]}  a2 {[%clk 0:00:48]} 65. Kf3 {[%clk 0:00:37]}  f5 {[%clk 0:00:44]} 66. Kg2 {[%clk 0:00:24]}  Kb7 {[%clk 0:00:43]} 67. Ra4 {[%clk 0:00:24]}  Kc6 {[%clk 0:00:43]} 68. Ra8 {[%clk 0:00:23]}  Kd5 {[%clk 0:00:42]} 69. Ra5+ {[%clk 0:00:22]}  Kc4 {[%clk 0:00:41]} 70. Ra8 {[%clk 0:00:22]}  Kb3 {[%clk 0:00:22]} 71. Rb8+ {[%clk 0:00:22]}  Kc3 {[%clk 0:00:23]} 72. Ra8 {[%clk 0:00:23]}  Kd3 {[%clk 0:00:21]} 73. Rd8+ {[%clk 0:00:22]}  Ke4 {[%clk 0:00:21]} 74. Ra8 {[%clk 0:00:21]}  f4 {[%clk 0:00:15]} 75. Ra4+ {[%clk 0:00:21]}  Kd3 {[%clk 0:00:16]} 76. Ra8 {[%clk 0:00:21]}  Ke2 {[%clk 0:00:14]} 77. Re8+ {[%clk 0:00:20]}  Kd3 {[%clk 0:00:14]} 78. Ra8 {[%clk 0:00:21]}  Ke4 {[%clk 0:00:09]} 79. Re8+ {[%clk 0:00:21]}  Kd5 {[%clk 0:00:09]} 80. Ra8 {[%clk 0:00:21]}  Kc6 {[%clk 0:00:10]} 81. Ra3 {[%clk 0:00:21]}  Kb5 {[%clk 0:00:10]} 82. Ra8 {[%clk 0:00:21]}  Kb4 {[%clk 0:00:08]} 83. Ra7 {[%clk 0:00:20]}  Kb3 {[%clk 0:00:09]} 84. Rb7+ {[%clk 0:00:20]}  Kc2 {[%clk 0:00:09]} 85. Ra7 {[%clk 0:00:20]}  Kd1 {[%clk 0:00:09]} 86. Ra8 {[%clk 0:00:19]}  Ke1 {[%clk 0:00:09]} 87. Re8+ {[%clk 0:00:19]}  Kd1 {[%clk 0:00:08]} 88. Ra8 {[%clk 0:00:20]}  Rc1 {[%clk 0:00:03]} 89. Rxa2 {[%clk 0:00:18]}  Rc2 {[%clk 0:00:04]} 90. Ra6 {[%clk 0:00:18]}  Ke1 {[%clk 0:00:04]} 91. Ra1+ {[%clk 0:00:09]}  Ke2 {[%clk 0:00:04]} 92. Ra6 {[%clk 0:00:09]}  Ke1 {[%clk 0:00:03]} 93. Ra1+ {[%clk 0:00:09]}  Kd2 {[%clk 0:00:04]} 94. Ra6 {[%clk 0:00:09]}  Ke2 {[%clk 0:00:04]} 95. Re6+ {[%clk 0:00:08]}  Kd1 {[%clk 0:00:04]} 96. Rxg6 {[%clk 0:00:08]}  Rc5 {[%clk 0:00:03]} 97. Re6 {[%clk 0:00:08]}  Kd2 {[%clk 0:00:03]} 98. Re7 {[%clk 0:00:08]}  Kd3 {[%clk 0:00:03]} 99. Re8 {[%clk 0:00:08]}  Kd2 {[%clk 0:00:04]} 100. Kf3 {[%clk 0:00:08]}  Rc3+ {[%clk 0:00:04]} 101. Kg2 {[%clk 0:00:09]}  Rc5 {[%clk 0:00:05]} 102. Re6 {[%clk 0:00:08]}  Kd3 {[%clk 0:00:05]} 103. Rd6+ {[%clk 0:00:08]}  Ke4 {[%clk 0:00:05]} 104. Re6+ {[%clk 0:00:09]}  Kd5 {[%clk 0:00:05]} 105. Re1 {[%clk 0:00:08]}  Kd4 {[%clk 0:00:05]} 106. Kf3 {[%clk 0:00:08]}  Rc3+ {[%clk 0:00:05]} 107. Kg2 {[%clk 0:00:09]}  Rc5 {[%clk 0:00:05]} 108. Rh1 {[%clk 0:00:09]}  Ke4 {[%clk 0:00:05]} 109. h4 {[%clk 0:00:09]}  gxh4 {[%clk 0:00:05]} 110. Rxh4 {[%clk 0:00:09]}  f3+ {[%clk 0:00:06]} 111. Kg3 {[%clk 0:00:10]}  Rc1 {[%clk 0:00:06]} 112. g5+ {[%clk 0:00:09]}  Kf5 {[%clk 0:00:06]} 113. Kxf3 {[%clk 0:00:07]}  Rc3+ {[%clk 0:00:06]} 114. Kg2 {[%clk 0:00:06]}  Kxg5 {[%clk 0:00:07]} 115. Ra4 {[%clk 0:00:07]}  Kf5 {[%clk 0:00:06]} 116. f3 {[%clk 0:00:07]}  Kg5 {[%clk 0:00:06]} 117. Kg3 {[%clk 0:00:07]}  Kf5 {[%clk 0:00:07]} 118. Ra5+ {[%clk 0:00:07]}  Kf6 {[%clk 0:00:07]} 119. Kg4 {[%clk 0:00:08]}  Kf7 {[%clk 0:00:06]} 120. Ra6 {[%clk 0:00:08]}  Rc5 {[%clk 0:00:06]} 121. f4 {[%clk 0:00:08]}  Rb5 {[%clk 0:00:06]} 122. f5 {[%clk 0:00:08]}  Rb1 {[%clk 0:00:06]} 123. Ra7+ {[%clk 0:00:08]}  Kf6 {[%clk 0:00:05]} 124. Ra6+ {[%clk 0:00:08]}  Kf7 {[%clk 0:00:06]} 125. Ra7+ {[%clk 0:00:09]}  Kf6 {[%clk 0:00:06]} 126. Ra6+ {[%clk 0:00:10]}  Kf7 {[%clk 0:00:06]} 1/2-1/2


[Site "https://www.chess.com"]

[Event "Titled Tuesday Blitz August 24 2021"]
[White "Balakrishnan, Praveen"]
[Black "Sadhwani, Raunak"]
[WhiteFideId "2064871"]
[BlackFideId "35093487"]
[WhiteElo "2237"]
[BlackElo "2514"]
[Result "1/2-1/2"]
[Round "05"]
[TimeControl "180+1"]
[Date "2021.08.24"]
[WhiteClock "0:00:08"]
[BlackClock "0:00:34"]

1. e4 {[%clk 0:03:00]}  d6 {[%clk 0:02:57]} 2. d4 {[%clk 0:02:57]}  Nf6 {[%clk 0:02:58]} 3. Nc3 {[%clk 0:02:55]}  g6 {[%clk 0:02:58]} 4. f4 {[%clk 0:02:55]}  Bg7 {[%clk 0:02:58]} 5. Nf3 {[%clk 0:02:53]}  O-O {[%clk 0:02:58]} 6. e5 {[%clk 0:02:47]}  dxe5 {[%clk 0:02:58]} 7. fxe5 {[%clk 0:02:47]}  Nd5 {[%clk 0:02:58]} 8. Bc4 {[%clk 0:02:47]}  Be6 {[%clk 0:02:56]} 9. Qe2 {[%clk 0:02:46]}  c5 {[%clk 0:02:47]} 10. Nxd5 {[%clk 0:02:40]}  Bxd5 {[%clk 0:02:48]} 11. Bxd5 {[%clk 0:02:41]}  Qxd5 {[%clk 0:02:48]} 12. c4 {[%clk 0:02:42]}  Qd7 {[%clk 0:02:48]} 13. d5 {[%clk 0:02:39]}  e6 {[%clk 0:02:49]} 14. d6 {[%clk 0:02:38]}  Nc6 {[%clk 0:02:49]} 15. Bf4 {[%clk 0:02:31]}  f6 {[%clk 0:02:48]} 16. Rd1 {[%clk 0:02:16]}  fxe5 {[%clk 0:02:46]} 17. Bxe5 {[%clk 0:02:09]}  Bxe5 {[%clk 0:02:27]} 18. Nxe5 {[%clk 0:02:09]}  Nxe5 {[%clk 0:02:27]} 19. Qxe5 {[%clk 0:02:09]}  Rf5 {[%clk 0:02:28]} 20. Qe4 {[%clk 0:01:58]}  Raf8 {[%clk 0:02:28]} 21. Rd2 {[%clk 0:01:45]}  Rf4 {[%clk 0:02:13]} 22. Qe2 {[%clk 0:01:34]}  Qc6 {[%clk 0:02:09]} 23. Qxe6+ {[%clk 0:01:25]}  R8f7 {[%clk 0:02:08]} 24. Kd1 {[%clk 0:01:09]}  Rf6 {[%clk 0:01:56]} 25. Qe5 {[%clk 0:00:43]}  Rf5 {[%clk 0:01:31]} 26. Qe6 {[%clk 0:00:37]}  Rf6 {[%clk 0:01:30]} 27. Qe5 {[%clk 0:00:19]}  Rf5 {[%clk 0:01:28]} 28. Qe3 {[%clk 0:00:09]}  R5f6 {[%clk 0:01:05]} 29. Re1 {[%clk 0:00:10]}  Rxd6 {[%clk 0:00:52]} 30. Qe8+ {[%clk 0:00:09]}  Kg7 {[%clk 0:00:52]} 31. Qe5+ {[%clk 0:00:07]}  Rff6 {[%clk 0:00:53]} 32. Rxd6 {[%clk 0:00:05]}  Qxd6+ {[%clk 0:00:54]} 33. Qxd6 {[%clk 0:00:05]}  Rxd6+ {[%clk 0:00:55]} 34. Kc2 {[%clk 0:00:06]}  Kf6 {[%clk 0:00:56]} 35. Rf1+ {[%clk 0:00:05]}  Ke7 {[%clk 0:00:55]} 36. Re1+ {[%clk 0:00:06]}  Re6 {[%clk 0:00:56]} 37. Rxe6+ {[%clk 0:00:05]}  Kxe6 {[%clk 0:00:57]} 38. Kd3 {[%clk 0:00:05]}  Ke5 {[%clk 0:00:58]} 39. Ke3 {[%clk 0:00:06]}  h6 {[%clk 0:00:54]} 40. h3 {[%clk 0:00:05]}  a6 {[%clk 0:00:53]} 41. a3 {[%clk 0:00:04]}  b6 {[%clk 0:00:50]} 42. b3 {[%clk 0:00:04]}  Kf5 {[%clk 0:00:51]} 43. Kf3 {[%clk 0:00:04]}  h5 {[%clk 0:00:47]} 44. h4 {[%clk 0:00:04]}  Ke5 {[%clk 0:00:46]} 45. Ke3 {[%clk 0:00:04]}  Kf5 {[%clk 0:00:47]} 46. Kf3 {[%clk 0:00:05]}  g5 {[%clk 0:00:47]} 47. g3 {[%clk 0:00:04]}  gxh4 {[%clk 0:00:30]} 48. gxh4 {[%clk 0:00:05]}  Ke5 {[%clk 0:00:30]} 49. Ke3 {[%clk 0:00:06]}  Kf5 {[%clk 0:00:31]} 50. Kf3 {[%clk 0:00:06]}  a5 {[%clk 0:00:32]} 51. a4 {[%clk 0:00:06]}  Ke5 {[%clk 0:00:31]} 52. Ke3 {[%clk 0:00:06]}  Kf5 {[%clk 0:00:32]} 53. Kf3 {[%clk 0:00:07]}  Ke5 {[%clk 0:00:33]} 54. Ke3 {[%clk 0:00:08]}  Kf5 {[%clk 0:00:34]} 55. Kf3 {[%clk 0:00:08]} 1/2-1/2


[Site "https://www.chess.com"]

[Event "Titled Tuesday Blitz August 24 2021"]
[White "Begunov, Konstantin"]
[Black "Korchmar, Vasiliy"]
[WhiteFideId "4118510"]
[BlackFideId "24131750"]
[WhiteElo "2262"]
[BlackElo "2370"]
[Result "0-1"]
[Round "05"]
[TimeControl "180+1"]
[Date "2021.08.24"]
[WhiteClock "0:00:06"]
[BlackClock "0:00:29"]

1. d4 {[%clk 0:02:53]}  Nf6 {[%clk 0:02:57]} 2. c4 {[%clk 0:02:53]}  g6 {[%clk 0:02:58]} 3. f3 {[%clk 0:02:52]}  Nc6 {[%clk 0:02:51]} 4. e4 {[%clk 0:02:52]}  e5 {[%clk 0:02:51]} 5. Ne2 {[%clk 0:02:48]}  exd4 {[%clk 0:02:45]} 6. Nxd4 {[%clk 0:02:48]}  Bc5 {[%clk 0:02:45]} 7. Nb3 {[%clk 0:02:30]}  Nxe4 {[%clk 0:02:32]} 8. fxe4 {[%clk 0:02:05]}  Qh4+ {[%clk 0:02:32]} 9. Kd2 {[%clk 0:02:05]}  Qf4+ {[%clk 0:02:24]} 10. Kc3 {[%clk 0:01:17]}  Qe5+ {[%clk 0:02:24]} 11. Kd2 {[%clk 0:01:10]}  Qf4+ {[%clk 0:02:20]} 12. Kc3 {[%clk 0:00:59]}  Qe5+ {[%clk 0:01:39]} 13. Kd2 {[%clk 0:00:59]}  Bb4+ {[%clk 0:01:10]} 14. Nc3 {[%clk 0:00:55]}  O-O {[%clk 0:01:10]} 15. Bd3 {[%clk 0:00:49]}  a5 {[%clk 0:01:06]} 16. a3 {[%clk 0:00:25]}  Be7 {[%clk 0:00:50]} 17. a4 {[%clk 0:00:19]}  d6 {[%clk 0:00:40]} 18. Nd5 {[%clk 0:00:19]}  Bd8 {[%clk 0:00:35]} 19. Kc2 {[%clk 0:00:19]}  Be6 {[%clk 0:00:32]} 20. Bf4 {[%clk 0:00:18]}  Qg7 {[%clk 0:00:27]} 21. Qf3 {[%clk 0:00:13]}  Bxd5 {[%clk 0:00:27]} 22. exd5 {[%clk 0:00:08]}  Nb4+ {[%clk 0:00:28]} 23. Kb1 {[%clk 0:00:06]}  Bf6 {[%clk 0:00:29]} 0-1


[Site "https://www.chess.com"]

[Event "Titled Tuesday Blitz August 24 2021"]
[White "Bortnyk, Olexandr"]
[Black "Kekelidze, Mikheil"]
[WhiteFideId "14120828"]
[BlackFideId "13600818"]
[WhiteElo "2723"]
[BlackElo "2387"]
[Result "1-0"]
[Round "05"]
[TimeControl "180+1"]
[Date "2021.08.24"]
[WhiteClock "0:00:19"]
[BlackClock "0:00:06"]

1. d4 {[%clk 0:03:00]}  Nf6 {[%clk 0:02:58]} 2. Nc3 {[%clk 0:03:00]}  d5 {[%clk 0:02:54]} 3. Bf4 {[%clk 0:02:56]}  a6 {[%clk 0:02:52]} 4. e3 {[%clk 0:02:56]}  e6 {[%clk 0:02:53]} 5. Nf3 {[%clk 0:02:56]}  Bd6 {[%clk 0:02:53]} 6. Ne5 {[%clk 0:02:55]}  c5 {[%clk 0:02:47]} 7. Bd3 {[%clk 0:02:43]}  Nc6 {[%clk 0:02:46]} 8. Nxc6 {[%clk 0:02:35]}  bxc6 {[%clk 0:02:46]} 9. dxc5 {[%clk 0:02:35]}  Bxf4 {[%clk 0:02:43]} 10. exf4 {[%clk 0:02:35]}  Qa5 {[%clk 0:02:43]} 11. O-O {[%clk 0:02:31]}  Rb8 {[%clk 0:02:41]} 12. Qe2 {[%clk 0:02:16]}  Rxb2 {[%clk 0:02:35]} 13. Qe5 {[%clk 0:02:16]}  Rb7 {[%clk 0:01:32]} 14. Rab1 {[%clk 0:01:29]}  O-O {[%clk 0:01:28]} 15. Rxb7 {[%clk 0:01:28]}  Bxb7 {[%clk 0:01:28]} 16. Rb1 {[%clk 0:01:29]}  Bc8 {[%clk 0:01:26]} 17. Qd4 {[%clk 0:01:19]}  Nd7 {[%clk 0:01:08]} 18. Na4 {[%clk 0:01:17]}  f6 {[%clk 0:01:04]} 19. Qb4 {[%clk 0:01:05]}  Qxb4 {[%clk 0:01:01]} 20. Rxb4 {[%clk 0:01:06]}  g6 {[%clk 0:00:55]} 21. f3 {[%clk 0:01:05]}  e5 {[%clk 0:00:55]} 22. g3 {[%clk 0:01:03]}  exf4 {[%clk 0:00:54]} 23. gxf4 {[%clk 0:01:03]}  Re8 {[%clk 0:00:54]} 24. Kf2 {[%clk 0:01:03]}  Kf8 {[%clk 0:00:53]} 25. Rd4 {[%clk 0:00:56]}  Ke7 {[%clk 0:00:53]} 26. c4 {[%clk 0:00:56]}  Bb7 {[%clk 0:00:44]} 27. Bc2 {[%clk 0:00:54]}  Rb8 {[%clk 0:00:40]} 28. Bb3 {[%clk 0:00:54]}  Ba8 {[%clk 0:00:39]} 29. cxd5 {[%clk 0:00:51]}  cxd5 {[%clk 0:00:40]} 30. Bxd5 {[%clk 0:00:52]}  Bxd5 {[%clk 0:00:40]} 31. Rxd5 {[%clk 0:00:52]}  Rb4 {[%clk 0:00:38]} 32. c6 {[%clk 0:00:52]}  Rxa4 {[%clk 0:00:36]} 33. Rxd7+ {[%clk 0:00:52]}  Ke6 {[%clk 0:00:36]} 34. Rxh7 {[%clk 0:00:51]}  Rxa2+ {[%clk 0:00:36]} 35. Ke3 {[%clk 0:00:51]}  Rc2 {[%clk 0:00:35]} 36. c7 {[%clk 0:00:40]}  a5 {[%clk 0:00:35]} 37. Kd3 {[%clk 0:00:40]}  Rc6 {[%clk 0:00:34]} 38. Rg7 {[%clk 0:00:36]}  Kf5 {[%clk 0:00:32]} 39. Kd4 {[%clk 0:00:36]}  a4 {[%clk 0:00:25]} 40. Kd5 {[%clk 0:00:36]}  Rc1 {[%clk 0:00:25]} 41. Kd6 {[%clk 0:00:34]}  a3 {[%clk 0:00:25]} 42. Rg8 {[%clk 0:00:35]}  a2 {[%clk 0:00:24]} 43. Ra8 {[%clk 0:00:35]}  Rd1+ {[%clk 0:00:24]} 44. Ke7 {[%clk 0:00:32]}  Re1+ {[%clk 0:00:22]} 45. Kf7 {[%clk 0:00:32]}  Rc1 {[%clk 0:00:22]} 46. Ra5+ {[%clk 0:00:31]}  Kxf4 {[%clk 0:00:21]} 47. Kxg6 {[%clk 0:00:29]}  Rxc7 {[%clk 0:00:19]} 48. Rxa2 {[%clk 0:00:29]}  Kxf3 {[%clk 0:00:19]} 49. h4 {[%clk 0:00:29]}  Kg4 {[%clk 0:00:16]} 50. Ra4+ {[%clk 0:00:29]}  Kh3 {[%clk 0:00:15]} 51. h5 {[%clk 0:00:29]}  f5 {[%clk 0:00:15]} 52. h6 {[%clk 0:00:27]}  Rc6+ {[%clk 0:00:15]} 53. Kg5 {[%clk 0:00:27]}  Rc7 {[%clk 0:00:15]} 54. Rf4 {[%clk 0:00:26]}  Rc8 {[%clk 0:00:13]} 55. h7 {[%clk 0:00:25]}  Rf8 {[%clk 0:00:11]} 56. Rxf5 {[%clk 0:00:23]}  Ra8 {[%clk 0:00:11]} 57. Kh6 {[%clk 0:00:19]}  Kh4 {[%clk 0:00:09]} 58. Kg7 {[%clk 0:00:18]}  Rb8 {[%clk 0:00:08]} 59. h8=Q+ {[%clk 0:00:18]}  Rxh8 {[%clk 0:00:06]} 60. Kxh8 {[%clk 0:00:19]} 1-0


[Site "https://www.chess.com"]

[Event "Titled Tuesday Blitz August 24 2021"]
[White "Boskovic, Drasko"]
[Black "Murzin, Volodar"]
[WhiteFideId "927368"]
[BlackFideId "44155573"]
[WhiteElo "2388"]
[BlackElo "2541"]
[Result "0-1"]
[Round "05"]
[TimeControl "180+1"]
[Date "2021.08.24"]
[WhiteClock "0:00:17"]
[BlackClock "0:00:07"]

1. e4 {[%clk 0:02:55]}  c6 {[%clk 0:02:59]} 2. d4 {[%clk 0:02:54]}  d5 {[%clk 0:02:58]} 3. Nd2 {[%clk 0:02:54]}  dxe4 {[%clk 0:02:59]} 4. Nxe4 {[%clk 0:02:55]}  Bf5 {[%clk 0:02:59]} 5. Ng3 {[%clk 0:02:54]}  Bg6 {[%clk 0:02:59]} 6. h4 {[%clk 0:02:55]}  h6 {[%clk 0:02:59]} 7. Nf3 {[%clk 0:02:56]}  e6 {[%clk 0:02:58]} 8. Ne5 {[%clk 0:02:55]}  Bh7 {[%clk 0:02:58]} 9. Bd3 {[%clk 0:02:56]}  Bxd3 {[%clk 0:02:57]} 10. Qxd3 {[%clk 0:02:57]}  Nf6 {[%clk 0:02:57]} 11. Bd2 {[%clk 0:02:57]}  Bd6 {[%clk 0:02:50]} 12. Qe2 {[%clk 0:02:49]}  Nbd7 {[%clk 0:02:36]} 13. O-O-O {[%clk 0:02:49]}  O-O {[%clk 0:02:33]} 14. f4 {[%clk 0:02:46]}  Qc7 {[%clk 0:02:13]} 15. Ne4 {[%clk 0:02:39]}  Nxe4 {[%clk 0:02:09]} 16. Qxe4 {[%clk 0:02:40]}  Nf6 {[%clk 0:02:07]} 17. Qf3 {[%clk 0:02:40]}  h5 {[%clk 0:01:56]} 18. f5 {[%clk 0:02:20]}  exf5 {[%clk 0:01:44]} 19. Qxf5 {[%clk 0:02:19]}  Qc8 {[%clk 0:01:43]} 20. Qf3 {[%clk 0:02:08]}  Bxe5 {[%clk 0:01:33]} 21. dxe5 {[%clk 0:02:00]}  Ng4 {[%clk 0:01:33]} 22. Bc3 {[%clk 0:01:55]}  Qe6 {[%clk 0:01:14]} 23. Rde1 {[%clk 0:01:43]}  Rad8 {[%clk 0:01:07]} 24. Kb1 {[%clk 0:01:41]}  Rd5 {[%clk 0:01:03]} 25. Qf4 {[%clk 0:01:39]}  Qg6 {[%clk 0:00:38]} 26. Rhf1 {[%clk 0:01:35]}  Re8 {[%clk 0:00:37]} 27. a3 {[%clk 0:01:29]}  Nh6 {[%clk 0:00:15]} 28. Rf3 {[%clk 0:01:28]}  Qg4 {[%clk 0:00:13]} 29. Qe3 {[%clk 0:01:25]}  b6 {[%clk 0:00:11]} 30. Rg3 {[%clk 0:01:13]}  Nf5 {[%clk 0:00:10]} 31. Rxg4 {[%clk 0:01:10]}  Nxe3 {[%clk 0:00:10]} 32. Rg5 {[%clk 0:01:00]}  Nd1 {[%clk 0:00:10]} 33. Rxh5 {[%clk 0:00:48]}  Nxc3+ {[%clk 0:00:09]} 34. bxc3 {[%clk 0:00:49]}  f6 {[%clk 0:00:06]} 35. c4 {[%clk 0:00:46]}  Rc5 {[%clk 0:00:06]} 36. Kb2 {[%clk 0:00:42]}  Rxc4 {[%clk 0:00:02]} 37. e6 {[%clk 0:00:41]}  Rd4 {[%clk 0:00:02]} 38. g3 {[%clk 0:00:36]}  Rd6 {[%clk 0:00:03]} 39. e7 {[%clk 0:00:36]}  Rd7 {[%clk 0:00:03]} 40. Rf5 {[%clk 0:00:35]}  Rdxe7 {[%clk 0:00:03]} 41. Rd1 {[%clk 0:00:36]}  Kf7 {[%clk 0:00:02]} 42. g4 {[%clk 0:00:34]}  Re5 {[%clk 0:00:02]} 43. Rf4 {[%clk 0:00:33]}  Re4 {[%clk 0:00:03]} 44. Rdf1 {[%clk 0:00:30]}  Rxf4 {[%clk 0:00:02]} 45. Rxf4 {[%clk 0:00:31]}  Kg6 {[%clk 0:00:02]} 46. Rc4 {[%clk 0:00:21]}  Re6 {[%clk 0:00:02]} 47. a4 {[%clk 0:00:21]}  Rd6 {[%clk 0:00:02]} 48. a5 {[%clk 0:00:11]}  c5 {[%clk 0:00:02]} 49. a6 {[%clk 0:00:12]}  Rd4 {[%clk 0:00:02]} 50. Rc3 {[%clk 0:00:11]}  Rxg4 {[%clk 0:00:01]} 51. Re3 {[%clk 0:00:12]}  Ra4 {[%clk 0:00:02]} 52. Re7 {[%clk 0:00:13]}  Rxa6 {[%clk 0:00:02]} 53. h5+ {[%clk 0:00:13]}  Kh6 {[%clk 0:00:02]} 54. Rc7 {[%clk 0:00:14]}  Ra5 {[%clk 0:00:03]} 55. c4 {[%clk 0:00:13]}  Ra4 {[%clk 0:00:03]} 56. Kb3 {[%clk 0:00:14]}  Rb4+ {[%clk 0:00:04]} 57. Kc3 {[%clk 0:00:15]}  a5 {[%clk 0:00:04]} 58. Ra7 {[%clk 0:00:14]}  a4 {[%clk 0:00:05]} 59. Ra8 {[%clk 0:00:15]}  Kxh5 {[%clk 0:00:05]} 60. Rh8+ {[%clk 0:00:16]}  Kg6 {[%clk 0:00:06]} 61. Rg8 {[%clk 0:00:17]}  Rb3+ {[%clk 0:00:06]} 62. Kc2 {[%clk 0:00:17]}  Rg3 {[%clk 0:00:07]} 63. Rf8 {[%clk 0:00:17]}  a3 {[%clk 0:00:07]} 0-1


[Site "https://www.chess.com"]

[Event "Titled Tuesday Blitz August 24 2021"]
[White "Brunner, Nicolas"]
[Black "Kovalchuk94"]
[WhiteFideId "620246"]
[WhiteElo "2372"]
[BlackElo "2589"]
[Result "0-1"]
[Round "05"]
[TimeControl "180+1"]
[Date "2021.08.24"]
[WhiteClock "0:00:03"]
[BlackClock "0:00:03"]

1. d4 {[%clk 0:03:00]}  Nf6 {[%clk 0:02:54]} 2. c4 {[%clk 0:03:00]}  e6 {[%clk 0:02:54]} 3. g3 {[%clk 0:03:00]}  d5 {[%clk 0:02:54]} 4. Nf3 {[%clk 0:03:01]}  Be7 {[%clk 0:02:54]} 5. Bg2 {[%clk 0:03:00]}  O-O {[%clk 0:02:55]} 6. O-O {[%clk 0:03:01]}  dxc4 {[%clk 0:02:55]} 7. Qc2 {[%clk 0:03:01]}  a6 {[%clk 0:02:55]} 8. Qxc4 {[%clk 0:03:01]}  b5 {[%clk 0:02:55]} 9. Qc2 {[%clk 0:03:01]}  Bb7 {[%clk 0:02:55]} 10. Bd2 {[%clk 0:03:02]}  Be4 {[%clk 0:02:52]} 11. Qc1 {[%clk 0:03:01]}  Bb7 {[%clk 0:02:46]} 12. Qc2 {[%clk 0:02:59]}  Be4 {[%clk 0:02:45]} 13. Qc1 {[%clk 0:02:59]}  c6 {[%clk 0:02:37]} 14. Rd1 {[%clk 0:02:57]}  Nbd7 {[%clk 0:02:36]} 15. Nc3 {[%clk 0:02:55]}  Rc8 {[%clk 0:02:20]} 16. Nxe4 {[%clk 0:02:51]}  Nxe4 {[%clk 0:02:21]} 17. Be3 {[%clk 0:02:38]}  c5 {[%clk 0:02:19]} 18. d5 {[%clk 0:02:33]}  exd5 {[%clk 0:02:17]} 19. Rxd5 {[%clk 0:02:33]}  Qc7 {[%clk 0:02:04]} 20. Qc2 {[%clk 0:02:30]}  Ndf6 {[%clk 0:01:57]} 21. Bf4 {[%clk 0:02:21]}  Qa7 {[%clk 0:01:52]} 22. Re5 {[%clk 0:02:14]}  Nd6 {[%clk 0:00:51]} 23. Rd1 {[%clk 0:02:11]}  Nc4 {[%clk 0:00:51]} 24. Rg5 {[%clk 0:01:43]}  h6 {[%clk 0:00:49]} 25. Rf5 {[%clk 0:01:41]}  Rfd8 {[%clk 0:00:45]} 26. b3 {[%clk 0:01:21]}  Rxd1+ {[%clk 0:00:44]} 27. Qxd1 {[%clk 0:01:21]}  Rd8 {[%clk 0:00:44]} 28. Qc1 {[%clk 0:01:16]}  Nb6 {[%clk 0:00:33]} 29. Bxh6 {[%clk 0:01:14]}  Bf8 {[%clk 0:00:04]} 30. Bg5 {[%clk 0:01:09]}  Rd6 {[%clk 0:00:04]} 31. Rxc5 {[%clk 0:00:59]}  Qd7 {[%clk 0:00:04]} 32. Rc7 {[%clk 0:00:16]}  Rd1+ {[%clk 0:00:04]} 33. Bf1 {[%clk 0:00:16]}  Rxc1 {[%clk 0:00:05]} 34. Rxd7 {[%clk 0:00:15]}  Rxf1+ {[%clk 0:00:05]} 35. Kxf1 {[%clk 0:00:15]}  Nfxd7 {[%clk 0:00:05]} 36. e4 {[%clk 0:00:14]}  f6 {[%clk 0:00:06]} 37. Be3 {[%clk 0:00:14]}  Bc5 {[%clk 0:00:06]} 38. Bd2 {[%clk 0:00:13]}  Kf7 {[%clk 0:00:06]} 39. Ke2 {[%clk 0:00:12]}  Ke6 {[%clk 0:00:07]} 40. Nh4 {[%clk 0:00:12]}  Ne5 {[%clk 0:00:06]} 41. f4 {[%clk 0:00:10]}  Nc6 {[%clk 0:00:07]} 42. Kd3 {[%clk 0:00:09]}  Nb4+ {[%clk 0:00:06]} 43. Bxb4 {[%clk 0:00:09]}  Bxb4 {[%clk 0:00:06]} 44. Nf5 {[%clk 0:00:09]}  g6 {[%clk 0:00:05]} 45. Nd4+ {[%clk 0:00:09]}  Kd7 {[%clk 0:00:05]} 46. h4 {[%clk 0:00:07]}  Bc5 {[%clk 0:00:04]} 47. Nf3 {[%clk 0:00:06]}  Nc8 {[%clk 0:00:04]} 48. e5 {[%clk 0:00:06]}  Ke6 {[%clk 0:00:03]} 49. exf6 {[%clk 0:00:05]}  Kxf6 {[%clk 0:00:04]} 50. Ne5 {[%clk 0:00:05]}  Kf5 {[%clk 0:00:04]} 51. Nd7 {[%clk 0:00:03]}  Bd6 {[%clk 0:00:04]} 52. Ke3 {[%clk 0:00:03]}  Ne7 {[%clk 0:00:03]} 0-1


[Site "https://www.chess.com"]